[Event "*** SCC Grand Prix: Titled Tuesday Blitz"]
[Site "Chess.com"]
[Date "2020.08.11"]
[Round "3"]
[White "Dinamo81"]
[Black "Beca95"]
[Result "0-1"]
[WhiteElo "2651"]
[BlackElo "2886"]
[TimeControl "180+1"]
[EndTime "10:30:21 PDT"]
[Termination "Beca95 won on time"]

1. d4 {[%clk 0:03:00.9]} 1... Nf6 {[%clk 0:02:59.6]} 2. Bf4 {[%clk 0:02:59.7]}
2... d5 {[%clk 0:02:55.5]} 3. e3 {[%clk 0:02:59.1]} 3... c5 {[%clk 0:02:55.4]}
4. Nc3 {[%clk 0:02:58.2]} 4... a6 {[%clk 0:02:54.3]} 5. dxc5 {[%clk 0:02:53]}
5... e6 {[%clk 0:02:53.1]} 6. Na4 {[%clk 0:02:43.3]} 6... Bxc5 {[%clk
0:02:51.3]} 7. Nxc5 {[%clk 0:02:42.9]} 7... Qa5+ {[%clk 0:02:51.2]} 8. c3 {[%clk
0:02:43.4]} 8... Qxc5 {[%clk 0:02:51.4]} 9. Nf3 {[%clk 0:02:43.6]} 9... O-O
{[%clk 0:02:51.1]} 10. Bd3 {[%clk 0:02:41.6]} 10... Nbd7 {[%clk 0:02:50.7]} 11.
Ne5 {[%clk 0:02:36.4]} 11... b6 {[%clk 0:02:42.9]} 12. O-O {[%clk 0:02:21.6]}
12... Bb7 {[%clk 0:02:41.8]} 13. Rc1 {[%clk 0:02:20.4]} 13... Qe7 {[%clk
0:02:39.8]} 14. c4 {[%clk 0:02:11.7]} 14... Rfc8 {[%clk 0:02:35.7]} 15. Qe2
{[%clk 0:02:06.7]} 15... Nc5 {[%clk 0:02:30.7]} 16. Bb1 {[%clk 0:02:05.5]} 16...
h6 {[%clk 0:02:25.2]} 17. Rfd1 {[%clk 0:02:01.2]} 17... a5 {[%clk 0:02:18.5]}
18. cxd5 {[%clk 0:01:23.8]} 18... exd5 {[%clk 0:02:08.3]} 19. Nf3 {[%clk
0:01:06.4]} 19... Ba6 {[%clk 0:02:06.9]} 20. Qe1 {[%clk 0:01:06.3]} 20... Ne6
{[%clk 0:01:54.5]} 21. Be5 {[%clk 0:01:05.2]} 21... Rxc1 {[%clk 0:01:46.5]} 22.
Rxc1 {[%clk 0:01:04.6]} 22... Ne4 {[%clk 0:01:46.7]} 23. Nd4 {[%clk 0:00:55.3]}
23... N6c5 {[%clk 0:01:45.8]} 24. Bf4 {[%clk 0:00:50.2]} 24... Qf6 {[%clk
0:01:33]} 25. f3 {[%clk 0:00:49.1]} 25... Nd6 {[%clk 0:01:32.6]} 26. Qg3 {[%clk
0:00:48.2]} 26... Ne8 {[%clk 0:01:24.6]} 27. Be5 {[%clk 0:00:43.8]} 27... Qg5
{[%clk 0:01:23.2]} 28. Nf5 {[%clk 0:00:44.3]} 28... Qxg3 {[%clk 0:01:22.7]} 29.
hxg3 {[%clk 0:00:45.2]} 29... f6 {[%clk 0:01:21.2]} 30. Bd4 {[%clk 0:00:43.9]}
30... Kf7 {[%clk 0:01:19.1]} 31. Bxc5 {[%clk 0:00:42.9]} 31... Rc8 {[%clk
0:01:19.2]} 32. Nd4 {[%clk 0:00:36.5]} 32... bxc5 {[%clk 0:01:16.5]} 33. Nb3
{[%clk 0:00:36.3]} 33... c4 {[%clk 0:01:16.8]} 34. Nxa5 {[%clk 0:00:36.4]} 34...
Nd6 {[%clk 0:01:16.2]} 35. Kf2 {[%clk 0:00:29.3]} 35... Ke6 {[%clk 0:01:05.7]}
36. Ke1 {[%clk 0:00:28.7]} 36... Kd7 {[%clk 0:00:58]} 37. Kd2 {[%clk 0:00:27.1]}
37... Rb8 {[%clk 0:00:58]} 38. b3 {[%clk 0:00:24]} 38... Rb5 {[%clk 0:00:57.5]}
39. b4 {[%clk 0:00:15.5]} 39... Rxb4 {[%clk 0:00:56.8]} 40. Bc2 {[%clk
0:00:15.9]} 40... Kc7 {[%clk 0:00:45.6]} 41. a3 {[%clk 0:00:14.5]} 41... Rb8
{[%clk 0:00:40.8]} 42. Ba4 {[%clk 0:00:14.5]} 42... Rb2+ {[%clk 0:00:40.1]} 43.
Rc2 {[%clk 0:00:13.6]} 43... Rxc2+ {[%clk 0:00:33.8]} 44. Kxc2 {[%clk
0:00:14.5]} 44... Bb5 {[%clk 0:00:25.3]} 45. Bxb5 {[%clk 0:00:10.8]} 45... Nxb5
{[%clk 0:00:25.8]} 46. a4 {[%clk 0:00:10.5]} 46... Na3+ {[%clk 0:00:19.8]} 47.
Kb2 {[%clk 0:00:08.9]} 47... Kb6 {[%clk 0:00:20.2]} 48. Kxa3 {[%clk 0:00:08.9]}
48... Kxa5 {[%clk 0:00:20.4]} 49. e4 {[%clk 0:00:07.3]} 49... d4 {[%clk
0:00:19.6]} 50. f4 {[%clk 0:00:07.1]} 50... d3 {[%clk 0:00:20]} 51. Kb2 {[%clk
0:00:07.1]} 51... Kb4 {[%clk 0:00:20.2]} 52. e5 {[%clk 0:00:06.9]} 52... c3+
{[%clk 0:00:20.7]} 53. Kc1 {[%clk 0:00:06.3]} 53... fxe5 {[%clk 0:00:21.1]} 54.
fxe5 {[%clk 0:00:06.1]} 54... Kb3 {[%clk 0:00:20.4]} 55. e6 {[%clk 0:00:06]}
55... d2+ {[%clk 0:00:20.7]} 56. Kd1 {[%clk 0:00:06.3]} 56... c2+ {[%clk
0:00:21.2]} 57. Kxd2 {[%clk 0:00:06.1]} 57... Kb2 {[%clk 0:00:21.8]} 58. e7
{[%clk 0:00:07]} 58... c1=Q+ {[%clk 0:00:21.7]} 0-1

[Event "*** SCC Grand Prix: Titled Tuesday Blitz"]
[Site "Chess.com"]
[Date "2020.08.11"]
[Round "3"]
[White "UKR_Master"]
[Black "teacher4chess"]
[Result "1-0"]
[WhiteElo "2301"]
[BlackElo "2039"]
[TimeControl "180+1"]
[EndTime "10:30:25 PDT"]
[Termination "UKR_Master won by checkmate"]

1. e4 {[%clk 0:03:00.9]} 1... Nf6 {[%clk 0:02:59.2]} 2. e5 {[%clk 0:02:58.2]}
2... Nd5 {[%clk 0:02:59.6]} 3. c4 {[%clk 0:02:57.7]} 3... Nb6 {[%clk 0:02:59.1]}
4. a4 {[%clk 0:02:56.3]} 4... a5 {[%clk 0:02:58.6]} 5. c5 {[%clk 0:02:56.2]}
5... Nd5 {[%clk 0:02:58.3]} 6. Nc3 {[%clk 0:02:57.1]} 6... Nxc3 {[%clk
0:02:58.2]} 7. dxc3 {[%clk 0:02:58]} 7... d6 {[%clk 0:02:44.9]} 8. Bc4 {[%clk
0:02:57.4]} 8... Bf5 {[%clk 0:02:23.4]} 9. Bf4 {[%clk 0:02:54.4]} 9... Nc6
{[%clk 0:02:05.8]} 10. exd6 {[%clk 0:02:44.5]} 10... exd6 {[%clk 0:02:03.4]} 11.
Qb3 {[%clk 0:02:37.4]} 11... Qe7+ {[%clk 0:01:54.5]} 12. Ne2 {[%clk 0:02:34.2]}
12... O-O-O {[%clk 0:01:52.3]} 13. O-O {[%clk 0:02:32.9]} 13... dxc5 {[%clk
0:01:46.9]} 14. Ng3 {[%clk 0:02:31.1]} 14... Bg6 {[%clk 0:01:46]} 15. Rfe1
{[%clk 0:01:57]} 15... Qf6 {[%clk 0:01:45.5]} 16. Be3 {[%clk 0:01:55.6]} 16...
Bd6 {[%clk 0:01:43]} 17. Bd5 {[%clk 0:01:53.2]} 17... Bxg3 {[%clk 0:01:31.9]}
18. hxg3 {[%clk 0:01:54.1]} 18... Bc2 {[%clk 0:01:29.1]} 19. Qc4 {[%clk
0:01:39.6]} 19... Ne5 {[%clk 0:01:26.8]} 20. Qxc5 {[%clk 0:01:39.5]} 20... Nd3
{[%clk 0:01:24.8]} 21. Qxa5 {[%clk 0:01:08.6]} 21... Nxe1 {[%clk 0:01:21.9]} 22.
Rxe1 {[%clk 0:01:07.5]} 22... Qa6 {[%clk 0:01:16.4]} 23. Qc5 {[%clk 0:00:50.1]}
23... Qd6 {[%clk 0:01:11.6]} 24. Qxd6 {[%clk 0:00:13.4]} 24... Rxd6 {[%clk
0:01:11.2]} 25. Bxf7 {[%clk 0:00:14.3]} 25... Bxa4 {[%clk 0:01:05.8]} 26. Ra1
{[%clk 0:00:14.4]} 26... Rd1+ {[%clk 0:01:05.6]} 27. Rxd1 {[%clk 0:00:13.7]}
27... Bxd1 {[%clk 0:01:05.8]} 28. Bd4 {[%clk 0:00:14.6]} 28... Rf8 {[%clk
0:01:02.2]} 29. Be6+ {[%clk 0:00:15]} 29... Kb8 {[%clk 0:00:57.6]} 30. Bxg7
{[%clk 0:00:15.2]} 30... Re8 {[%clk 0:00:58.1]} 31. Bf5 {[%clk 0:00:13.3]} 31...
Re1+ {[%clk 0:00:56.5]} 32. Kh2 {[%clk 0:00:13.6]} 32... h5 {[%clk 0:00:51.6]}
33. Bd4 {[%clk 0:00:11.6]} 33... Re2 {[%clk 0:00:49.1]} 34. b4 {[%clk
0:00:11.7]} 34... b6 {[%clk 0:00:46.9]} 35. b5 {[%clk 0:00:11.3]} 35... Bc2
{[%clk 0:00:46.7]} 36. Bd7 {[%clk 0:00:07.3]} 36... Bd3 {[%clk 0:00:44.6]} 37.
Kh3 {[%clk 0:00:07.4]} 37... Bxb5 {[%clk 0:00:43]} 38. Bxb5 {[%clk 0:00:07]}
38... Kb7 {[%clk 0:00:43.4]} 39. Bxe2 {[%clk 0:00:07.1]} 39... c5 {[%clk
0:00:43.5]} 40. Bf3+ {[%clk 0:00:07.5]} 40... Ka6 {[%clk 0:00:43.3]} 41. Be3
{[%clk 0:00:08.1]} 41... Kb5 {[%clk 0:00:42.9]} 42. Bxh5 {[%clk 0:00:09]} 42...
Kc4 {[%clk 0:00:43.3]} 43. Bd2 {[%clk 0:00:09.5]} 43... Kd3 {[%clk 0:00:43.8]}
44. Be3 {[%clk 0:00:09.8]} 44... Kxc3 {[%clk 0:00:43.9]} 45. Bf7 {[%clk
0:00:10.7]} 45... c4 {[%clk 0:00:43.1]} 46. Bxb6 {[%clk 0:00:09]} 46... Kb4
{[%clk 0:00:41.7]} 47. Bxc4 {[%clk 0:00:09.9]} 47... Kxc4 {[%clk 0:00:42]} 48.
Be3 {[%clk 0:00:10.8]} 48... Kd5 {[%clk 0:00:42.5]} 49. g4 {[%clk 0:00:11.7]}
49... Ke6 {[%clk 0:00:43.1]} 50. Kh4 {[%clk 0:00:12.6]} 50... Kf6 {[%clk
0:00:43.4]} 51. Kh5 {[%clk 0:00:13.5]} 51... Kg7 {[%clk 0:00:43.5]} 52. g5
{[%clk 0:00:13.8]} 52... Kg8 {[%clk 0:00:43.3]} 53. g6 {[%clk 0:00:14.7]} 53...
Kg7 {[%clk 0:00:43.6]} 54. Bd4+ {[%clk 0:00:14.6]} 54... Kg8 {[%clk 0:00:43.9]}
55. Kh6 {[%clk 0:00:15.5]} 55... Kf8 {[%clk 0:00:44.3]} 56. Kh7 {[%clk
0:00:15.1]} 56... Ke7 {[%clk 0:00:44.4]} 57. g7 {[%clk 0:00:16]} 57... Ke6
{[%clk 0:00:44.9]} 58. g8=Q+ {[%clk 0:00:16.9]} 58... Kf5 {[%clk 0:00:43.6]} 59.
Qd5+ {[%clk 0:00:15.7]} 59... Kg4 {[%clk 0:00:43.4]} 60. Qe4+ {[%clk 0:00:15.7]}
60... Kg5 {[%clk 0:00:43.5]} 61. Kg7 {[%clk 0:00:13.7]} 61... Kh5 {[%clk
0:00:42.9]} 62. f3 {[%clk 0:00:13.3]} 62... Kg5 {[%clk 0:00:42.9]} 63. Qg4#
{[%clk 0:00:14.1]} 1-0

[Event "*** SCC Grand Prix: Titled Tuesday Blitz"]
[Site "Chess.com"]
[Date "2020.08.11"]
[Round "3"]
[White "GMHess"]
[Black "Meri-Arabidze"]
[Result "1-0"]
[WhiteElo "2823"]
[BlackElo "2612"]
[TimeControl "180+1"]
[EndTime "10:30:27 PDT"]
[Termination "GMHess won on time"]

1. d4 {[%clk 0:03:00.9]} 1... d5 {[%clk 0:02:59.4]} 2. Nf3 {[%clk 0:02:59.1]}
2... Nf6 {[%clk 0:02:59.1]} 3. g3 {[%clk 0:02:50.5]} 3... e6 {[%clk 0:02:55.5]}
4. Bg2 {[%clk 0:02:51.4]} 4... b5 {[%clk 0:02:55.7]} 5. O-O {[%clk 0:02:51.5]}
5... Be7 {[%clk 0:02:55.6]} 6. a4 {[%clk 0:02:49.5]} 6... b4 {[%clk 0:02:55.2]}
7. c4 {[%clk 0:02:49.3]} 7... bxc3 {[%clk 0:02:55.3]} 8. Nxc3 {[%clk 0:02:47.9]}
8... O-O {[%clk 0:02:55.3]} 9. Bf4 {[%clk 0:02:46.8]} 9... c5 {[%clk 0:02:51.5]}
10. Nb5 {[%clk 0:02:31]} 10... Na6 {[%clk 0:02:49.1]} 11. dxc5 {[%clk
0:02:30.4]} 11... Bxc5 {[%clk 0:02:45.8]} 12. Rc1 {[%clk 0:02:29.5]} 12... Ne4
{[%clk 0:02:39.2]} 13. Ne5 {[%clk 0:02:17.4]} 13... Qf6 {[%clk 0:02:04.7]} 14.
Nd3 {[%clk 0:02:07]} 14... Be7 {[%clk 0:01:42.2]} 15. Be5 {[%clk 0:01:42.8]}
15... Qh6 {[%clk 0:01:40.1]} 16. Bd4 {[%clk 0:01:39.4]} 16... Bd7 {[%clk
0:00:55.5]} 17. Nc7 {[%clk 0:01:31.9]} 17... Nxc7 {[%clk 0:00:53.7]} 18. Rxc7
{[%clk 0:01:32.8]} 18... Rfd8 {[%clk 0:00:50.3]} 19. Rxa7 {[%clk 0:01:16.6]}
19... Qd2 {[%clk 0:00:50.3]} 20. Bxe4 {[%clk 0:00:55.5]} 20... Qxd1 {[%clk
0:00:50]} 21. Bxh7+ {[%clk 0:00:56.4]} 21... Kxh7 {[%clk 0:00:50.5]} 22. Rxd1
{[%clk 0:00:56.2]} 22... Rxa7 {[%clk 0:00:49.5]} 23. Bxa7 {[%clk 0:00:56.6]}
23... Bxa4 {[%clk 0:00:50.2]} 24. Rc1 {[%clk 0:00:50.5]} 24... Bf6 {[%clk
0:00:36.5]} 25. Rc7 {[%clk 0:00:46.6]} 25... Kg8 {[%clk 0:00:32.4]} 26. b4
{[%clk 0:00:38.3]} 26... Bb5 {[%clk 0:00:30.7]} 27. Bc5 {[%clk 0:00:17.3]} 27...
Ra8 {[%clk 0:00:30.2]} 28. Rb7 {[%clk 0:00:15.2]} 28... Ra1+ {[%clk 0:00:28]}
29. Kg2 {[%clk 0:00:14.9]} 29... Bc4 {[%clk 0:00:17.6]} 30. b5 {[%clk
0:00:14.8]} 30... d4 {[%clk 0:00:16]} 31. Rb8+ {[%clk 0:00:13.1]} 31... Kh7
{[%clk 0:00:16.4]} 32. b6 {[%clk 0:00:12.9]} 32... Bd5+ {[%clk 0:00:16.7]} 33.
Kh3 {[%clk 0:00:11.5]} 33... Rb1 {[%clk 0:00:15.4]} 34. Rf8 {[%clk 0:00:09.1]}
34... e5 {[%clk 0:00:13.5]} 35. f3 {[%clk 0:00:06.6]} 35... Rb3 {[%clk
0:00:06.4]} 36. Nb4 {[%clk 0:00:06.1]} 36... Be6+ {[%clk 0:00:06]} 37. Kg2
{[%clk 0:00:05.9]} 37... d3 {[%clk 0:00:02.4]} 38. exd3 {[%clk 0:00:03.9]} 38...
Rb2+ {[%clk 0:00:02.8]} 39. Kf1 {[%clk 0:00:04]} 39... e4 {[%clk 0:00:02.5]} 40.
fxe4 {[%clk 0:00:03.9]} 40... Bh3+ {[%clk 0:00:02.5]} 41. Ke1 {[%clk 0:00:04.2]}
41... Bc3+ {[%clk 0:00:02.3]} 42. Kd1 {[%clk 0:00:04.3]} 42... Bxb4 {[%clk
0:00:03.2]} 43. b7 {[%clk 0:00:02.3]} 43... Bxc5 {[%clk 0:00:03.4]} 44. b8=Q
{[%clk 0:00:03.1]} 44... Rxb8 {[%clk 0:00:04]} 45. Rxb8 {[%clk 0:00:03.8]} 45...
Bg4+ {[%clk 0:00:04.4]} 46. Kd2 {[%clk 0:00:04.1]} 46... Bg1 {[%clk 0:00:05]}
47. Rb5 {[%clk 0:00:03.2]} 47... Bxh2 {[%clk 0:00:04.8]} 48. Rg5 {[%clk
0:00:03.3]} 48... Bf3 {[%clk 0:00:04.3]} 49. Ke3 {[%clk 0:00:03.6]} 49... Bd1
{[%clk 0:00:04.2]} 50. Kf4 {[%clk 0:00:02.4]} 50... Bg1 {[%clk 0:00:03.7]} 51.
Rb5 {[%clk 0:00:02.1]} 51... Bf2 {[%clk 0:00:03.2]} 52. Rb1 {[%clk 0:00:01.3]}
52... Bh5 {[%clk 0:00:03]} 53. Rh1 {[%clk 0:00:01.2]} 1-0

[Event "*** SCC Grand Prix: Titled Tuesday Blitz"]
[Site "Chess.com"]
[Date "2020.08.11"]
[Round "3"]
[White "XDPS"]
[Black "VerdeNotte"]
[Result "0-1"]
[WhiteElo "2651"]
[BlackElo "2884"]
[TimeControl "180+1"]
[EndTime "10:30:29 PDT"]
[Termination "VerdeNotte won on time"]

1. e4 {[%clk 0:03:00.9]} 1... c5 {[%clk 0:02:58]} 2. Nf3 {[%clk 0:03:00.8]} 2...
g6 {[%clk 0:02:57.9]} 3. d4 {[%clk 0:02:57]} 3... cxd4 {[%clk 0:02:57.9]} 4.
Nxd4 {[%clk 0:02:57]} 4... Nc6 {[%clk 0:02:55]} 5. Nc3 {[%clk 0:02:47.9]} 5...
Bg7 {[%clk 0:02:54.6]} 6. Be3 {[%clk 0:02:43.6]} 6... Nf6 {[%clk 0:02:47.4]} 7.
Be2 {[%clk 0:02:40.9]} 7... O-O {[%clk 0:02:46.1]} 8. O-O {[%clk 0:02:39.6]}
8... d5 {[%clk 0:02:45.7]} 9. exd5 {[%clk 0:02:37.6]} 9... Nxd5 {[%clk
0:02:44.1]} 10. Nxd5 {[%clk 0:02:38]} 10... Qxd5 {[%clk 0:02:27]} 11. Bf3 {[%clk
0:02:38]} 11... Qa5 {[%clk 0:02:23.2]} 12. Nxc6 {[%clk 0:01:35.7]} 12... bxc6
{[%clk 0:02:22.4]} 13. c3 {[%clk 0:01:36.3]} 13... Rb8 {[%clk 0:02:13.8]} 14.
Qc1 {[%clk 0:01:32.6]} 14... c5 {[%clk 0:01:59.4]} 15. Re1 {[%clk 0:01:31.2]}
15... Be6 {[%clk 0:01:56.1]} 16. a3 {[%clk 0:01:23.8]} 16... c4 {[%clk 0:01:50]}
17. Qc2 {[%clk 0:01:12.7]} 17... Bf5 {[%clk 0:01:46.3]} 18. Qc1 {[%clk
0:01:09.2]} 18... Rfd8 {[%clk 0:01:38.1]} 19. Bg5 {[%clk 0:01:05.4]} 19... Bf6
{[%clk 0:01:28.2]} 20. Bxf6 {[%clk 0:00:51]} 20... exf6 {[%clk 0:01:29.1]} 21.
Be2 {[%clk 0:00:51.2]} 21... Bd3 {[%clk 0:01:23.4]} 22. Bxd3 {[%clk 0:00:44.4]}
22... cxd3 {[%clk 0:01:18.3]} 23. b4 {[%clk 0:00:39.4]} 23... Qc7 {[%clk
0:01:07.9]} 24. Qd2 {[%clk 0:00:39]} 24... Rbc8 {[%clk 0:01:06]} 25. Rac1 {[%clk
0:00:38.6]} 25... Qc4 {[%clk 0:01:01.7]} 26. Re3 {[%clk 0:00:38.8]} 26... h5
{[%clk 0:00:58.5]} 27. g3 {[%clk 0:00:38.8]} 27... Rd6 {[%clk 0:00:56.4]} 28.
Rf3 {[%clk 0:00:37.5]} 28... Qe4 {[%clk 0:00:45.3]} 29. Re3 {[%clk 0:00:35.1]}
29... Qc4 {[%clk 0:00:38.1]} 30. Rf3 {[%clk 0:00:35.4]} 30... Re8 {[%clk
0:00:34.1]} 31. Rd1 {[%clk 0:00:18.3]} 31... Re2 {[%clk 0:00:25.8]} 32. Qf4
{[%clk 0:00:18.5]} 32... Qxf4 {[%clk 0:00:14.4]} 33. Rxf4 {[%clk 0:00:19.4]}
33... Rc2 {[%clk 0:00:10.9]} 34. Rd4 {[%clk 0:00:15.5]} 34... Rxd4 {[%clk
0:00:06.4]} 35. cxd4 {[%clk 0:00:16.4]} 35... d2 {[%clk 0:00:06.8]} 36. Kg2
{[%clk 0:00:16.1]} 36... Kf8 {[%clk 0:00:05.6]} 37. Kf3 {[%clk 0:00:16.3]} 37...
f5 {[%clk 0:00:04.2]} 38. Kf4 {[%clk 0:00:15]} 38... Ke7 {[%clk 0:00:03.9]} 39.
a4 {[%clk 0:00:13.1]} 39... Kd6 {[%clk 0:00:03.8]} 40. Ke3 {[%clk 0:00:13.4]}
40... Rc4 {[%clk 0:00:03.2]} 41. Rxd2 {[%clk 0:00:07.3]} 41... Rxb4 {[%clk
0:00:03.8]} 42. Ra2 {[%clk 0:00:07.7]} 42... Kd5 {[%clk 0:00:04.3]} 43. Rc2
{[%clk 0:00:08.1]} 43... Rxd4 {[%clk 0:00:03.8]} 44. Rc7 {[%clk 0:00:06.3]}
44... Rxa4 {[%clk 0:00:02.8]} 45. Rxf7 {[%clk 0:00:06.8]} 45... Re4+ {[%clk
0:00:03.2]} 46. Kf3 {[%clk 0:00:07.1]} 46... a5 {[%clk 0:00:04.1]} 47. Ra7
{[%clk 0:00:07.3]} 47... a4 {[%clk 0:00:04.4]} 48. h4 {[%clk 0:00:07.5]} 48...
Kc5 {[%clk 0:00:03.7]} 49. Ra6 {[%clk 0:00:07.9]} 49... Kb5 {[%clk 0:00:03]} 50.
Rxg6 {[%clk 0:00:08.5]} 50... a3 {[%clk 0:00:03.5]} 51. Rg5 {[%clk 0:00:08.1]}
51... Ra4 {[%clk 0:00:03.4]} 52. Rxf5+ {[%clk 0:00:08.2]} 52... Kb4 {[%clk
0:00:03.9]} 53. Rf4+ {[%clk 0:00:07.1]} 53... Kb3 {[%clk 0:00:04.2]} 54. Re4
{[%clk 0:00:04.1]} 54... Rxe4 {[%clk 0:00:03.9]} 0-1

[Event "*** SCC Grand Prix: Titled Tuesday Blitz"]
[Site "Chess.com"]
[Date "2020.08.11"]
[Round "3"]
[White "mohssenbinaddi"]
[Black "Fischerev7"]
[Result "0-1"]
[WhiteElo "2188"]
[BlackElo "2417"]
[TimeControl "180+1"]
[EndTime "10:30:31 PDT"]
[Termination "Fischerev7 won by checkmate"]

1. Nf3 {[%clk 0:03:00.9]} 1... d5 {[%clk 0:02:56.9]} 2. g3 {[%clk 0:03:01.8]}
2... Nf6 {[%clk 0:02:56.4]} 3. d4 {[%clk 0:03:00.5]} 3... c5 {[%clk 0:02:55.7]}
4. c4 {[%clk 0:03:00.3]} 4... dxc4 {[%clk 0:02:55.4]} 5. Qa4+ {[%clk 0:02:59.4]}
5... Nc6 {[%clk 0:02:53.9]} 6. dxc5 {[%clk 0:02:57.9]} 6... Qa5+ {[%clk
0:02:28.9]} 7. Nc3 {[%clk 0:02:48.3]} 7... Qxa4 {[%clk 0:02:27.7]} 8. Nxa4
{[%clk 0:02:47.8]} 8... e5 {[%clk 0:02:23.4]} 9. Be3 {[%clk 0:02:08.5]} 9... Bd7
{[%clk 0:02:11.3]} 10. O-O-O {[%clk 0:01:55.5]} 10... Ng4 {[%clk 0:01:41.6]} 11.
Bh3 {[%clk 0:01:50.3]} 11... h5 {[%clk 0:01:29.3]} 12. Ng5 {[%clk 0:01:38.4]}
12... Bf5 {[%clk 0:01:14.7]} 13. Bxg4 {[%clk 0:01:24.2]} 13... hxg4 {[%clk
0:01:07.5]} 14. f3 {[%clk 0:01:15.8]} 14... f6 {[%clk 0:00:56.7]} 15. Ne4 {[%clk
0:01:11.5]} 15... Bxe4 {[%clk 0:00:57.2]} 16. fxe4 {[%clk 0:01:11.3]} 16... Rd8
{[%clk 0:00:54.1]} 17. Rxd8+ {[%clk 0:01:07.6]} 17... Kxd8 {[%clk 0:00:55]} 18.
Rd1+ {[%clk 0:01:07.7]} 18... Kc7 {[%clk 0:00:54.1]} 19. Bg1 {[%clk 0:01:08.6]}
19... Be7 {[%clk 0:00:51.4]} 20. Nc3 {[%clk 0:01:07.7]} 20... Kc8 {[%clk
0:00:39.6]} 21. Nd5 {[%clk 0:01:07.4]} 21... Bd8 {[%clk 0:00:39.8]} 22. Ne3
{[%clk 0:01:05.3]} 22... Nd4 {[%clk 0:00:37]} 23. Rd2 {[%clk 0:01:01.4]} 23...
Ba5 {[%clk 0:00:29.4]} 24. Nxc4 {[%clk 0:00:50.7]} 24... Bxd2+ {[%clk
0:00:29.2]} 25. Kxd2 {[%clk 0:00:50.6]} 25... Kc7 {[%clk 0:00:24.7]} 26. b4
{[%clk 0:00:40.9]} 26... Kc6 {[%clk 0:00:23.8]} 27. a4 {[%clk 0:00:39.3]} 27...
b6 {[%clk 0:00:21.9]} 28. cxb6 {[%clk 0:00:34.8]} 28... axb6 {[%clk 0:00:22.8]}
29. b5+ {[%clk 0:00:30.9]} 29... Kb7 {[%clk 0:00:13.1]} 30. Kd3 {[%clk 0:00:30]}
30... Rd8 {[%clk 0:00:12]} 31. Bxd4 {[%clk 0:00:18]} 31... Rxd4+ {[%clk
0:00:11.6]} 32. Kc3 {[%clk 0:00:18.8]} 32... Kc7 {[%clk 0:00:10.8]} 33. a5
{[%clk 0:00:15.8]} 33... bxa5 {[%clk 0:00:10.7]} 34. b6+ {[%clk 0:00:15.9]}
34... Kc6 {[%clk 0:00:09.9]} 35. e3 {[%clk 0:00:16.1]} 35... Rxe4 {[%clk
0:00:05.9]} 36. b7 {[%clk 0:00:16.4]} 36... Rxc4+ {[%clk 0:00:04.6]} 37. Kxc4
{[%clk 0:00:16.2]} 37... Kxb7 {[%clk 0:00:05.5]} 38. Kb5 {[%clk 0:00:16.7]}
38... Kc7 {[%clk 0:00:04.6]} 39. Kxa5 {[%clk 0:00:17]} 39... Kc6 {[%clk
0:00:05.3]} 40. Kb4 {[%clk 0:00:14.6]} 40... Kd5 {[%clk 0:00:06.2]} 41. Kc3
{[%clk 0:00:14.6]} 41... Ke4 {[%clk 0:00:07.1]} 42. Kd2 {[%clk 0:00:15.3]} 42...
Kf3 {[%clk 0:00:07.2]} 43. Kd3 {[%clk 0:00:15]} 43... f5 {[%clk 0:00:07.2]} 44.
e4 {[%clk 0:00:11.4]} 44... fxe4+ {[%clk 0:00:07.2]} 45. Kd2 {[%clk 0:00:12.3]}
45... Kf2 {[%clk 0:00:07.1]} 46. h4 {[%clk 0:00:10.7]} 46... gxh3 {[%clk
0:00:08]} 47. g4 {[%clk 0:00:10.3]} 47... h2 {[%clk 0:00:08.5]} 48. g5 {[%clk
0:00:11.2]} 48... e3+ {[%clk 0:00:08.9]} 49. Kc3 {[%clk 0:00:12.1]} 49... e2
{[%clk 0:00:09.1]} 50. Kc4 {[%clk 0:00:13]} 50... e1=Q {[%clk 0:00:09.1]} 51.
Kd5 {[%clk 0:00:13.9]} 51... h1=Q+ {[%clk 0:00:08.8]} 52. Ke6 {[%clk 0:00:14.8]}
52... Qc6+ {[%clk 0:00:08.6]} 53. Kf7 {[%clk 0:00:15.7]} 53... Qd7+ {[%clk
0:00:07.4]} 54. Kg6 {[%clk 0:00:14.9]} 54... Qb4 {[%clk 0:00:07.4]} 55. Kh7
{[%clk 0:00:15.8]} 55... Qbb7 {[%clk 0:00:06.8]} 56. g6 {[%clk 0:00:16.7]} 56...
Qh3+ {[%clk 0:00:06.8]} 57. Kg8 {[%clk 0:00:16.5]} 57... Qbc8+ {[%clk
0:00:07.4]} 58. Kxg7 {[%clk 0:00:16.7]} 58... Qhd7+ {[%clk 0:00:07.7]} 59. Kh6
{[%clk 0:00:16.6]} 59... Qcc6 {[%clk 0:00:06.4]} 60. Kh5 {[%clk 0:00:15.9]}
60... Qh3+ {[%clk 0:00:06.9]} 61. Kg5 {[%clk 0:00:15.6]} 61... Qg3+ {[%clk
0:00:07.4]} 62. Kh6 {[%clk 0:00:16.5]} 62... Qcxg6# {[%clk 0:00:07.4]} 0-1